bitfinex/quotes_ETHUSD_20241123
["timestamp","ask_amount","ask_price","bid_price","bid_amount"]
[1732325197606,0.0377365,3312.9,3311.8,0.0521784]
[1732325197806,0.7883,3313.0,3311.8,0.0521784]
[1732325199109,1.53979682,3313.0,3311.8,0.0521784]
[1732325199309,0.19171562,3312.9,3311.8,0.0521784]
[1732325199705,0.15397968,3312.9,3311.8,0.0521784]
[1732325200446,0.03773595,3312.8,3311.8,0.0521784]
[1732325200751,0.7883,3312.7,3311.8,0.0521784]
[1732325201048,0.7883,3313.1,3311.9,0.8153]
[1732325201556,0.7883,3313.1,3311.8,0.0521784]
[1732325201720,0.03773448,3313.0,3311.8,0.0521784]
[1732325202054,0.7883,3313.1,3311.8,0.0521784]
[1732325202208,0.7883,3312.1,3311.8,0.0521784]
[1732325202411,0.7883,3312.5,3311.8,0.01541355]
[1732325202907,0.7883,3312.9,3311.9,0.8153]
[1732325203850,1.5519191,3312.9,3311.9,0.8153]
[1732325205226,0.7636191,3312.9,3311.9,0.8153]
[1732325205422,0.7883,3313.3,3311.9,0.8153]
[1732325205735,0.01,3313.1,3311.9,0.8153]
[1732325206347,0.03773426,3313.2,3311.9,0.8153]
[1732325206645,0.01,3313.1,3311.9,0.8153]
[1732325207318,0.03773426,3313.2,3311.9,0.8153]
[1732325207543,0.01,3313.1,3311.9,0.8153]
[1732325208657,0.03773426,3313.2,3311.9,0.8153]
[1732325208967,0.01,3313.1,3311.9,0.8153]
[1732325209119,0.01,3313.1,3311.9,0.83334175]
[1732325209752,0.03773426,3313.2,3311.9,0.83334175]
[1732325209962,0.01,3313.1,3312.0,0.8153]
[1732325210118,1.55235702,3313.3,3312.0,1.1144]
[1732325210326,0.01,3313.1,3312.0,1.1144]
[1732325210861,0.01,3313.0,3312.0,1.1144]
[1732325211060,0.76405702,3313.3,3312.1,0.8153]
[1732325211257,0.76405702,3313.3,3312.0,0.01804175]
[1732325211258,0.01,3314.0,3312.3,0.8153]
[1732325211416,0.7883,3314.1,3312.4,0.8153]
[1732325211618,0.01,3314.0,3312.4,0.8153]
[1732325212014,0.04772536,3314.3,3312.4,0.8153]
[1732325212556,0.01,3314.0,3312.4,0.8153]
[1732325212747,0.01,3314.0,3312.1,0.8153]
[1732325213868,0.8102804,3314.3,3312.1,0.8153]
[1732325214034,0.01,3314.0,3312.1,0.8153]
[1732325214557,0.8102804,3314.3,3312.1,0.8153]
[1732325214759,0.01,3314.0,3312.1,0.8153]
[1732325216165,0.15985804,3314.2,3312.1,0.8153]
[1732325216465,0.01,3314.0,3312.1,0.8153]
[1732325222085,0.01,3314.0,3312.0,0.01804175]
[1732325222086,0.01,3314.0,3313.0,0.8021]
[1732325222441,0.76255504,3314.3,3313.0,0.8021]
[1732325222653,0.01,3314.0,3313.0,0.8021]
[1732325222874,0.01,3314.0,3313.0,0.7521]
[1732325223662,0.75059245,3314.6,3313.0,0.2991]
[1732325223860,0.02426715,3314.8,3313.2,0.2991]
[1732325224180,0.78980236,3314.8,3313.2,0.2991]
[1732325224486,0.02426715,3314.8,3313.2,0.2991]
[1732325224688,0.02426715,3314.8,3313.2,0.625536]
[1732325224843,0.02426715,3314.8,3313.4,0.2991]
[1732325225804,0.02426715,3314.8,3313.3,0.2991]
[1732325225947,0.02426715,3314.8,3313.7,0.2991]
[1732325226149,0.02426715,3314.8,3313.9,0.2991]
[1732325226393,0.02426715,3314.8,3314.4,0.00644458]
[1732325226588,0.02426715,3314.8,3314.7,0.80854458]
[1732325228095,0.0423089,3315.7,3314.9,0.00644458]
[1732325228249,0.0423089,3315.7,3315.3,0.00644458]
[1732325228444,0.8218,3315.6,3315.5,0.00644458]
[1732325228690,0.01,3314.9,3313.3,0.8021]
[1732325228856,0.05771375,3314.9,3313.3,0.8021]
[1732325229057,0.01,3314.4,3313.3,0.8021]
[1732325229259,0.01,3314.2,3313.3,0.8021]
[1732325229497,0.8218,3314.1,3313.3,0.8021]
[1732325229646,0.03772059,3314.0,3313.3,0.8021]
[1732325230881,0.01,3314.2,3313.3,0.8021]
[1732325231097,0.01,3314.0,3312.6,0.8021]
[1732325231301,0.8218,3313.9,3313.5,10.0]
[1732325231504,0.0377237,3313.8,3313.5,9.70700001]
[1732325231867,0.01,3313.6,3313.5,2.57087779]
[1732325232066,0.56,3313.6,3313.5,1.88991779]
[1732325232266,0.56,3313.6,3313.5,1.28955779]
[1732325232513,0.56,3313.6,3313.5,0.68096]
[1732325232812,0.01,3313.3,3312.1,0.8021]
[1732325233014,0.55,3313.2,3312.1,0.8021]
[1732325233214,0.03773163,3313.1,3312.1,0.8021]
[1732325233922,0.55,3313.2,3312.1,0.8021]
[1732325234301,0.75629027,3314.0,3310.3,2.8075]
[1732325234302,0.02,3312.6,3311.6,0.8021]
[1732325234472,0.01,3312.1,3311.1,0.8021]
[1732325234675,0.55,3312.0,3311.1,0.8021]
[1732325234884,0.03774382,3311.9,3310.7,0.8021]
[1732325235190,0.01,3311.7,3310.7,0.8021]
[1732325235813,0.55,3311.6,3310.7,0.8021]
[1732325235978,0.03774873,3311.5,3310.7,0.8021]
[1732325236169,0.03774873,3311.5,3310.1,0.8184089]
[1732325236170,0.55,3311.2,3310.1,0.8184089]
[1732325236573,0.55,3311.5,3310.1,0.8184089]
[1732325237009,0.55,3311.5,3311.0,0.8184089]
[1732325237634,0.03774848,3313.4,3311.0,0.8184089]
[1732325237635,0.01,3312.2,3311.0,0.8184089]
[1732325237914,0.01,3312.0,3311.0,0.8184089]
[1732325238114,0.75975823,3312.2,3311.0,0.8184089]
[1732325238496,0.74975823,3312.2,3311.0,0.8184089]
[1732325238704,0.7899,3312.8,3311.0,0.8184089]
[1732325239010,0.01,3312.8,3311.0,0.8184089]
[1732325239380,0.01,3312.9,3311.0,0.8184089]
[1732325239591,0.74692293,3312.9,3311.0,0.8184089]
[1732325239895,0.01,3313.1,3311.0,0.8184089]
[1732325240218,0.01,3313.3,3311.0,0.8184089]
[1732325240378,0.01,3313.3,3311.1,0.896349]
[1732325240680,0.01,3313.6,3311.1,0.896349]
[1732325241123,0.01,3313.2,3311.1,0.896349]
[1732325241284,0.7899,3313.0,3311.1,0.896349]
[1732325241623,0.03773565,3312.9,3311.1,0.896349]
[1732325241821,0.55,3312.8,3311.1,0.896349]
[1732325242115,0.55,3312.9,3311.1,0.896349]
[1732325242321,0.55,3312.7,3311.1,0.896349]
[1732325242992,0.02,3313.5,3311.1,0.896349]
[1732325243324,0.02,3313.7,3311.2,0.7761]
[1732325243507,0.01,3312.4,3311.2,0.7761]
[1732325244091,0.02,3312.3,3311.2,0.7761]
[1732325245522,0.01,3312.3,3311.2,0.7761]
[1732325245710,0.02,3312.3,3311.2,0.7761]
[1732325246429,0.03774763,3312.9,3311.2,0.7761]
[1732325246430,0.02,3312.5,3311.2,0.7761]
[1732325246582,0.01,3312.5,3311.2,0.7761]
[1732325246784,0.01,3312.5,3311.3,0.3002]
[1732325247320,0.02,3312.5,3311.3,0.3002]
[1732325247625,0.01,3312.4,3311.3,0.3002]
[1732325247923,0.01,3312.5,3311.3,0.3002]
[1732325248120,0.01,3312.4,3311.3,0.3002]
[1732325248319,0.01,3312.4,3311.4,0.3002]
[1732325248490,0.01,3312.5,3311.4,0.3002]
[1732325249319,0.01,3312.5,3311.3,0.3002]
[1732325249532,0.01,3312.5,3311.4,0.3002]
[1732325250396,0.01,3312.5,3311.3,0.3002]
[1732325250693,0.75924417,3312.9,3311.6,0.3002]
[1732325250895,0.01,3313.7,3312.8,0.8702]
[1732325251222,0.01,3313.7,3312.3,0.7761]
[1732325251223,0.01,3312.8,3312.3,0.7761]
[1732325253494,0.03772585,3313.7,3312.3,0.7761]
[1732325253629,1.57570324,3316.2,3311.0,0.0423089]
[1732325253630,0.01,3315.6,3313.4,0.7761]
[1732325253809,0.0423089,3315.7,3313.6,0.3002]
[1732325254009,0.0423089,3315.7,3313.8,0.7761]
[1732325254347,0.0423089,3315.7,3314.1,1.0763]
[1732325254517,0.0423089,3315.7,3314.2,1.65835404]
[1732325254705,0.0423089,3315.7,3314.5,0.3002]
[1732325254904,0.0423089,3315.7,3314.6,2.43445404]
[1732325255213,0.0423089,3315.7,3314.7,0.7761]
[1732325255417,0.0423089,3315.7,3314.7,1.65835404]
[1732325255619,0.0423089,3315.7,3314.7,2.41475404]
[1732325255798,0.7538,3315.4,3314.7,1.65835404]
[1732325256006,0.01,3312.7,3311.9,0.7564]
[1732325256204,0.01,3313.6,3311.9,0.7564]
[1732325256406,0.01,3315.1,3310.8,0.09311311]
[1732325256407,0.01,3315.3,3313.7,0.7564]
[1732325256606,0.01,3315.0,3313.8,2.28436376]
[1732325256817,0.01,3315.2,3313.7,0.7564]
[1732325257279,0.7638,3315.5,3313.7,0.7564]
[1732325257548,0.7538,3315.5,3313.7,0.7564]
[1732325257733,0.01,3316.1,3313.7,0.7564]
[1732325259260,0.01,3315.9,3313.7,0.7564]
[1732325259407,0.01,3315.5,3313.7,0.7564]
[1732325260057,0.03769701,3316.1,3313.7,0.7564]
[1732325260233,0.7538,3316.5,3313.7,0.7564]
[1732325260549,0.0423089,3316.7,3313.9,0.7564]
[1732325260759,0.0423089,3316.7,3314.1,0.7564]
[1732325261103,0.0423089,3316.7,3314.3,0.7564]
[1732325261408,0.0423089,3316.7,3314.5,0.7564]
[1732325261612,0.0423089,3316.7,3314.7,0.7564]
[1732325261858,0.0423089,3316.7,3314.7,0.8796941]
[1732325262017,0.0423089,3316.7,3314.7,1.6360941]
[1732325263954,0.0423089,3316.7,3314.8,0.7564]
[1732325264267,0.0423089,3316.7,3315.4,0.7564]
[1732325264467,0.0423089,3316.7,3315.5,0.8796941]
[1732325264644,0.0423089,3316.7,3315.6,0.76284458]
[1732325264850,0.0423089,3316.7,3315.6,1.64253868]
[1732325265534,0.75159925,3318.3,3315.9,0.76284458]
[1732325265535,0.7538,3318.3,3315.9,0.76284458]
[1732325265739,0.7538,3318.3,3316.6,0.00644458]
[1732325265740,0.0426111,3316.8,3316.6,0.00644458]
[1732325266280,0.0426111,3316.8,3316.5,0.76284458]
[1732325266281,0.0426111,3318.7,3317.8,0.00644458]
[1732325266655,0.0465478,3318.7,3317.8,0.00644458]
[1732325266855,0.0465478,3318.7,3318.1,0.00644458]
[1732325269541,0.01,3320.1,3318.2,0.00644458]
[1732325269765,0.01,3319.9,3318.2,0.00644458]
[1732325270081,0.55,3319.7,3318.2,0.00644458]
[1732325270280,0.55,3319.5,3318.2,0.00644458]
[1732325270478,0.03628901,3319.4,3318.2,0.00644458]
[1732325270779,0.55,3319.3,3318.2,0.03657704]
[1732325271111,0.55,3319.3,3318.3,0.00644458]
[1732325271742,0.55,3319.3,3318.4,0.00644458]
[1732325271945,0.77817127,3320.1,3317.3,0.0042261]
[1732325271946,0.01,3319.5,3317.3,0.0042261]
[1732325272269,0.03765952,3319.4,3317.3,0.0042261]
[1732325272468,0.7588,3319.3,3317.3,0.0042261]
[1732325272643,0.7588,3319.1,3317.4,0.7943]
[1732325273274,0.55,3319.0,3317.4,0.7943]
[1732325274140,0.7588,3319.5,3317.4,0.7943]
[1732325275772,0.55,3319.4,3317.4,0.7943]
[1732325276180,0.7588,3319.5,3317.4,0.7943]
[1732325276385,0.7615,3320.1,3317.4,0.7943]
[1732325276585,0.15241989,3320.0,3317.4,0.7943]
[1732325276806,0.74605491,3321.0,3318.0,0.8321]
[1732325277031,0.7615,3321.1,3318.2,0.8321]
[1732325277199,0.7615,3321.1,3318.3,0.36914074]
[1732325277393,0.7615,3321.1,3318.4,0.8321]
[1732325279425,0.55,3321.0,3318.4,0.8321]
[1732325281178,0.55,3320.8,3318.4,0.8321]
[1732325281469,0.0548261,3321.2,3319.0,0.00644458]
[1732325281606,0.0548261,3321.2,3319.5,0.8321]
[1732325282006,0.0548261,3321.2,3319.6,0.00644458]
[1732325282336,0.0548261,3321.2,3319.8,0.00644458]
[1732325284263,0.55,3321.1,3319.8,0.00644458]
[1732325284426,1.3115,3321.1,3319.8,0.00644458]
[1732325284952,0.55,3321.1,3319.8,0.00644458]
[1732325285107,0.0548261,3321.2,3319.8,0.00644458]
[1732325285307,0.0548261,3321.2,3318.7,0.01]
[1732325285308,0.0548261,3321.2,3320.2,0.00644458]
[1732325286057,0.0548261,3321.2,3320.4,0.00644458]
[1732325286272,0.0548261,3321.2,3320.6,0.00644458]
[1732325286459,0.0548261,3321.2,3320.8,0.00644458]
[1732325286813,0.0548261,3321.2,3321.0,0.00644458]
[1732325291949,0.0548261,3321.2,3321.1,0.00644458]
[1732325292374,0.6048261,3321.2,3321.1,0.00644458]
[1732325295854,1.3191,3321.1,3321.0,0.00644458]
[1732325296072,1.35674134,3321.1,3321.0,0.00644458]
[1732325297656,0.55,3321.1,3321.0,0.00644458]
[1732325297883,0.0548261,3321.2,3321.0,0.00644458]
[1732325301274,0.0548261,3321.2,3321.1,0.7724]
[1732325302294,0.6048261,3321.2,3321.1,0.7724]
[1732325303167,0.0548261,3321.2,3321.1,1.0726]
[1732325304798,0.6048261,3321.2,3321.1,1.0726]
[1732325307406,0.6048261,3321.2,3321.0,0.00644458]
[1732325307570,0.55,3321.1,3321.0,0.00644458]
[1732325311811,0.0548261,3321.2,3321.0,0.00644458]
[1732325311963,0.0548261,3321.2,3321.0,0.77884458]
[1732325312986,0.0548261,3321.2,3321.1,0.3002]
[1732325313966,0.6048261,3321.2,3321.1,0.3002]
[1732325315162,0.6048261,3321.2,3321.0,0.77884458]
[1732325315163,0.55,3321.1,3321.0,0.00644458]
[1732325321994,0.55,3321.1,3321.0,0.30664458]
[1732325322378,0.55,3321.1,3321.0,0.00644458]
[1732325331723,0.0548261,3321.2,3321.0,1.11824458]
[1732325332252,0.00718141,3321.4,3321.0,1.11824458]
[1732325332408,0.55,3321.1,3321.0,1.11824458]
[1732325333919,0.0771331,3321.2,3321.0,1.11824458]
[1732325339155,0.0771331,3321.2,3321.1,1.0644]
[1732325339321,0.0771331,3321.2,3321.1,1.184283]
[1732325342135,0.0771331,3321.2,3321.1,1.194283]
[1732325342648,0.0771331,3321.2,3321.1,1.56342374]
[1732325342832,0.0771331,3321.2,3321.1,1.72105503]
[1732325344080,0.0771331,3321.2,3321.1,1.35191429]
[1732325344677,0.0771331,3321.2,3321.1,1.72105503]
[1732325345938,0.0378586,3322.1,3321.4,0.01]
[1732325346143,0.0378586,3322.1,3322.0,1.07084458]
[1732325352435,0.0378586,3322.1,3322.0,0.30664458]
[1732325354535,0.0378586,3322.1,3322.0,0.00644458]
[1732325358669,0.0378586,3322.1,3322.0,1.12584458]
[1732325360660,0.0378586,3322.1,3322.0,1.50498532]
[1732325360975,0.00322089,3322.1,3322.0,1.65677277]
[1732325362378,0.00028017,3322.1,3322.0,1.65677277]
[1732325362545,0.00028017,3322.1,3322.0,1.55032819]
[1732325362960,0.03,3322.4,3322.0,1.55032819]
[1732325362961,0.03,3322.4,3322.3,0.02644458]
[1732325363193,0.03,3322.8,3322.7,0.00644458]
[1732325365872,0.7848,3322.8,3322.7,0.00644458]
[1732325369795,0.7848,3322.8,3321.2,0.3002]
[1732325370203,0.8282,3322.6,3320.8,0.3002]
[1732325371295,0.98903527,3322.6,3320.8,0.3002]
[1732325371535,0.8282,3322.4,3320.4,0.3002]
[1732325373792,0.8282,3322.4,3320.4,0.29301859]
[1732325374160,0.03762547,3322.3,3320.3,0.8333]
[1732325374367,0.8282,3322.3,3320.3,0.8333]
[1732325374765,0.03763008,3322.2,3320.3,0.8333]
[1732325374964,0.8282,3322.5,3319.7,0.8333]
[1732325375177,0.79015272,3322.8,3319.7,0.8333]
[1732325375178,0.8282,3322.3,3319.7,0.8333]
[1732325375408,0.8282,3322.1,3319.7,0.8333]
[1732325375699,0.81983474,3322.0,3319.7,0.8333]
[1732325375998,0.7822,3322.0,3319.7,0.8333]
[1732325377360,0.7813,3322.0,3319.7,0.8333]
[1732325382319,0.55,3321.9,3319.7,0.8333]
[1732325382528,0.55,3321.7,3319.7,0.8333]
[1732325382842,0.55,3321.4,3319.7,0.8333]
[1732325382998,0.7822,3321.3,3319.7,0.8333]
[1732325383192,0.55,3321.2,3319.7,0.8333]
[1732325383724,0.55,3321.0,3319.4,0.01]
[1732325383929,0.55,3320.8,3319.4,0.01]
[1732325384289,0.55,3320.8,3319.3,0.8125]
[1732325384490,0.55,3320.6,3318.9,0.8025]
[1732325384715,0.7822,3320.5,3318.9,0.8025]
[1732325385026,0.55,3320.2,3318.9,0.8025]
[1732325386090,0.55,3320.2,3319.1,0.01]
[1732325386498,0.55,3320.2,3319.5,0.8122]
[1732325386712,0.55,3320.4,3319.5,0.8122]
[1732325386919,0.55,3320.4,3319.6,0.3380586]
[1732325387894,0.8187,3320.3,3319.6,0.3380586]
[1732325388090,0.55,3320.2,3319.6,0.0378586]
[1732325388338,0.55,3320.0,3319.6,0.0378586]
[1732325388693,0.55,3319.8,3319.2,0.3002]
[1732325389070,0.55,3319.8,3318.7,0.0378586]
[1732325389896,0.55,3319.8,3318.7,0.3380586]
[1732325391040,0.55,3319.8,3318.7,0.0378586]
[1732325391217,0.55,3319.8,3318.9,0.3002]
[1732325395025,0.03,3320.0,3319.3,0.3002]
[1732325395933,0.03,3320.0,3319.3,0.3027888]
[1732325397227,0.55,3320.2,3319.3,0.3027888]
[1732325401521,0.55,3320.2,3319.4,0.01]
[1732325401845,0.55,3320.2,3319.3,0.3027888]
[1732325401846,0.772,3320.7,3319.6,0.3002]
[1732325402917,0.55,3320.6,3319.6,0.3027888]
[1732325403562,0.75004493,3321.0,3319.6,0.3027888]
[1732325403563,0.772,3320.5,3319.7,0.3002]
[1732325403718,0.55,3320.4,3319.7,0.3002]
[1732325404430,0.55,3320.4,3319.8,0.3002]
[1732325406474,0.55,3320.7,3319.8,0.3002]
[1732325406924,0.55,3320.5,3319.9,0.3002]
[1732325408032,0.55,3320.5,3319.6,0.0025888]
[1732325408033,0.55,3320.5,3320.0,0.3002]
[1732325408431,0.55,3320.1,3319.6,0.0025888]
[1732325408651,0.55,3319.9,3319.6,0.0025888]
[1732325411439,0.55,3319.7,3319.6,0.0025888]
[1732325411646,1.5092,3319.7,3319.6,0.0025888]
[1732325411983,1.322,3319.7,3319.6,0.0025888]
[1732325412847,0.55,3319.4,3318.3,0.3002]
[1732325413042,0.772,3319.3,3318.3,0.3002]
[1732325413280,0.772,3319.3,3318.1,0.0337962]
[1732325413479,0.80966097,3319.2,3318.1,0.0337962]
[1732325413681,0.772,3319.2,3318.1,0.0337962]
[1732325414834,0.55,3319.1,3318.1,0.0337962]
[1732325415036,0.55,3318.9,3318.1,0.0337962]
[1732325415547,0.55,3318.5,3318.1,0.0337962]
[1732325415727,0.55,3318.3,3318.1,0.0337962]
[1732325417033,0.7696,3318.8,3318.1,0.0337962]
[1732325418653,0.55,3318.7,3318.1,0.0337962]
[1732325418860,0.55,3318.5,3318.1,0.0337962]
[1732325419797,0.7696,3318.6,3318.1,0.0337962]
[1732325419964,0.7696,3320.1,3318.1,0.8605962]
[1732325420164,0.7696,3319.6,3318.1,0.0337962]
[1732325420377,0.01,3320.2,3318.1,0.0337962]
[1732325420378,0.7696,3319.2,3318.1,0.0337962]
[1732325420598,0.80726963,3319.1,3318.1,0.0337962]
[1732325421251,0.55,3319.0,3318.1,0.0337962]
[1732325421454,0.55,3318.7,3318.1,0.0337962]
[1732325421654,1.3196,3318.5,3318.1,0.0337962]
[1732325422596,0.55,3318.3,3318.1,0.0337962]
[1732325422778,1.3196,3318.2,3318.1,0.0337962]
[1732325423320,0.55,3318.1,3317.3,0.0337962]
[1732325423981,0.55,3317.9,3317.3,0.0337962]
[1732325426504,0.7696,3317.8,3317.3,0.0337962]
[1732325426713,0.7696,3317.6,3317.3,0.0337962]
[1732325426919,0.7696,3317.4,3317.3,0.0337962]
[1732325430091,0.7696,3317.4,3316.6,0.0337962]
[1732325430989,0.03768454,3317.3,3316.6,0.0337962]
[1732325431186,0.03768454,3317.3,3316.2,0.8268]
[1732325431187,0.7696,3317.4,3316.4,0.0393647]
[1732325432528,0.03768189,3317.3,3316.4,0.0393647]
[1732325432841,0.15434472,3317.2,3316.4,0.0393647]
[1732325434432,0.7361653,3317.4,3316.5,0.8268]
[1732325434629,0.7696,3317.8,3316.5,0.8268]
[1732325434938,1.50224083,3317.8,3316.5,0.8268]
[1732325435309,0.03767781,3317.7,3316.5,0.8268]
[1732325435609,0.03767781,3317.7,3316.4,0.0393647]
[1732325435610,0.7696,3317.6,3316.4,0.0393647]
[1732325435808,0.8033,3317.4,3316.4,0.0393647]
[1732325436797,0.8033,3317.2,3316.4,0.0393647]
[1732325437324,0.03768864,3317.1,3316.4,0.0393647]
[1732325438007,0.8033,3317.0,3316.4,0.0393647]
[1732325438206,0.03769099,3316.9,3316.4,0.0393647]
[1732325438406,0.8033,3317.0,3315.6,0.3002]
[1732325438652,0.8033,3316.8,3315.6,0.3002]
[1732325438946,0.8033,3316.6,3315.6,0.3002]
[1732325439169,0.8033,3316.4,3315.5,0.0382349]
[1732325439309,0.8033,3316.3,3315.5,0.0382349]
[1732325440937,0.03769875,3316.2,3315.5,0.0382349]
[1732325441247,0.8033,3316.1,3315.5,0.0382349]
[1732325441448,0.03770217,3316.0,3315.5,0.0382349]
[1732325441608,0.8033,3315.9,3315.5,0.0382349]
[1732325441850,0.8033,3315.9,3315.8,0.00644458]
[1732325447512,1.57094717,3315.9,3315.8,0.00644458]
[1732325447720,0.76764717,3315.9,3315.8,0.00644458]
[1732325448079,0.8033,3316.3,3316.2,0.00644458]
[1732325451396,1.57223981,3316.3,3316.2,0.00644458]
[1732325451709,1.72946379,3316.3,3316.2,0.00644458]
[1732325452114,1.76716822,3316.3,3316.2,0.00644458]
[1732325455827,0.844,3316.2,3316.1,0.00644458]
[1732325458022,0.844,3316.2,3316.0,0.00644458]
[1732325458200,1.04250232,3316.1,3316.0,0.00644458]
[1732325459231,1.05250232,3316.1,3316.0,0.00644458]
[1732325461452,0.844,3315.6,3315.5,0.0382349]
[1732325461950,0.87171986,3315.6,3315.5,0.0382349]
[1732325462156,0.86171986,3315.6,3315.5,0.0382349]
[1732325462449,0.824,3316.1,3315.5,0.0382349]
[1732325462622,0.03770606,3316.0,3315.5,0.0382349]
[1732325463328,0.824,3315.8,3315.5,0.0382349]
[1732325463535,0.824,3315.6,3315.5,0.0382349]
[1732325465010,1.58539655,3315.6,3315.5,0.0382349]
[1732325467328,1.59539655,3315.6,3315.5,0.0382349]
[1732325467537,1.75970781,3315.6,3315.5,0.0382349]
[1732325468037,0.99831126,3315.6,3315.5,0.0382349]
[1732325470666,0.98831126,3315.6,3315.5,0.0382349]
[1732325470840,0.76593265,3315.6,3315.5,0.0382349]
[1732325471044,0.03771277,3315.8,3315.5,0.0382349]
[1732325471239,0.03770701,3316.1,3315.5,0.0382349]
[1732325471651,0.76720871,3316.1,3315.5,0.0382349]
[1732325471852,0.03770413,3316.0,3315.5,0.0382349]
[1732325472052,0.04770411,3316.4,3315.5,0.0382349]
[1732325472277,0.8125859,3316.4,3315.5,0.0382349]
[1732325472488,0.01,3316.2,3315.5,0.0382349]
[1732325472650,0.01,3316.2,3314.7,0.0382349]
[1732325472651,0.02,3315.8,3314.7,0.7941349]
[1732325472871,0.02,3315.8,3314.7,0.0382349]
[1732325472872,0.7825,3315.5,3314.7,0.0382349]
[1732325473060,0.7825,3315.5,3314.4,0.46242452]
[1732325473061,0.04771559,3315.4,3314.4,0.46242452]
[1732325473390,0.03771559,3315.4,3314.4,0.46242452]
[1732325473681,0.04771559,3315.4,3314.4,0.46242452]
[1732325475274,0.01,3315.2,3313.7,0.0367797]
[1732325475474,0.04772155,3315.2,3313.7,0.0367797]
[1732325476078,0.03772155,3315.2,3313.8,0.7664]
[1732325476604,0.79786961,3315.2,3313.8,0.7664]
[1732325476840,0.03771854,3315.3,3313.8,0.7664]
[1732325477116,0.75121662,3315.3,3313.8,0.7664]
[1732325477471,0.03771449,3315.4,3313.8,0.7664]
[1732325477672,0.73417934,3315.5,3313.8,0.7664]
[1732325477872,0.03771123,3315.7,3313.8,0.7664]
[1732325478096,0.03771123,3315.7,3313.9,0.7664]
[1732325478405,0.19795313,3315.7,3313.9,0.7664]
[1732325480221,0.20795313,3315.7,3313.9,0.7664]
[1732325480864,0.19795313,3315.7,3313.9,0.7664]
[1732325481193,0.03771123,3315.7,3313.9,0.7664]
[1732325481946,0.03771123,3315.7,3314.1,0.7664]
[1732325482755,0.03771198,3315.7,3314.3,0.7664]
[1732325483858,0.19795395,3315.7,3314.3,0.7664]
[1732325484025,0.8258,3315.6,3313.8,0.7664]
[1732325484210,0.86351695,3315.5,3313.8,0.7664]
[1732325484412,0.01,3315.3,3313.8,0.7664]
[1732325484656,0.8258,3315.2,3313.8,0.7664]
[1732325484851,0.03771836,3315.1,3313.8,0.7664]
[1732325485433,0.8258,3315.0,3313.8,0.7664]
[1732325485745,0.03772067,3314.9,3313.8,0.7664]
[1732325485945,0.8258,3314.8,3313.7,0.0367797]
[1732325486158,0.03772507,3314.7,3313.7,0.0367797]
[1732325486451,0.34335128,3315.7,3313.7,0.0367797]
[1732325486452,0.7986,3315.5,3313.8,0.7962]
[1732325486648,0.03771465,3315.4,3313.8,0.7962]
[1732325486965,0.7986,3315.5,3313.8,0.7962]
[1732325487171,0.03771516,3315.3,3313.9,0.7962]
[1732325487675,0.7986,3315.9,3314.3,0.7962]
[1732325487869,0.77661998,3315.8,3314.3,0.7962]
[1732325488022,0.03771223,3315.8,3314.3,0.7962]
[1732325488972,0.74826163,3315.9,3314.5,0.7962]
[1732325489174,0.03770607,3316.1,3314.6,0.7962]
[1732325489329,0.7986,3316.2,3314.9,0.7962]
[1732325489666,0.03770284,3316.1,3314.9,0.7962]
[1732325491240,0.55,3316.0,3314.9,0.7962]
[1732325491427,0.74998798,3316.1,3314.9,0.7962]
[1732325491624,0.7986,3316.2,3314.9,0.7962]
[1732325492056,0.7986,3316.5,3314.9,0.7962]
[1732325492246,0.0060102,3316.6,3314.9,0.7962]
[1732325493745,0.55,3316.4,3314.9,0.7962]
[1732325494062,0.55,3316.2,3314.9,0.7962]
[1732325494226,0.55,3316.5,3314.9,0.7962]
[1732325494461,0.55,3316.3,3314.9,0.7962]
[1732325494862,0.55,3316.5,3314.9,0.7962]
[1732325495163,0.55,3316.3,3314.9,0.7962]
[1732325495368,0.55,3316.1,3314.9,0.7962]
[1732325495568,0.58770028,3316.3,3314.9,0.7962]
[1732325496165,0.55,3316.1,3314.9,0.7962]
[1732325496371,0.55,3315.9,3314.9,0.7962]
[1732325497079,0.55,3316.0,3314.9,0.7962]
[1732325497267,0.03770034,3316.4,3314.9,0.7962]
[1732325497463,0.0060102,3316.6,3314.9,0.7962]
[1732325499312,0.55,3316.4,3314.9,0.7962]
[1732325499510,0.55,3316.2,3314.9,0.7962]
[1732325499812,0.55,3316.5,3314.9,0.7962]
[1732325499970,0.55,3316.3,3314.9,0.7962]
[1732325500168,0.55,3316.1,3314.9,0.7962]
[1732325501798,0.03770077,3316.0,3314.9,0.7962]
[1732325501971,0.55,3315.9,3314.9,0.7962]
[1732325502308,0.55,3315.7,3314.9,0.7962]
[1732325502808,0.55,3316.0,3314.9,0.7962]
[1732325502985,0.55,3315.8,3314.9,0.7962]
[1732325503617,0.55,3315.6,3314.9,0.7962]
[1732325503771,0.03770799,3315.5,3314.9,0.7962]
[1732325504093,0.55,3315.4,3314.9,0.7962]
[1732325504281,0.55,3315.2,3314.2,0.8211]
[1732325504473,0.55,3315.0,3314.2,0.8211]
[1732325504915,0.55,3315.7,3314.2,0.8211]
[1732325505118,0.55,3315.5,3314.2,0.8211]
[1732325505466,0.55,3315.3,3314.2,0.8211]
[1732325505731,0.55,3315.1,3314.2,0.8211]
[1732325505912,0.03770812,3315.0,3314.2,0.8211]
[1732325506086,0.55,3314.9,3314.2,0.8211]
[1732325506605,0.55,3314.7,3314.2,0.8211]
[1732325506808,0.55,3315.0,3314.2,0.8211]
[1732325507018,0.55,3314.8,3314.2,0.8211]
[1732325508408,0.55,3314.6,3314.2,0.8211]
[1732325509681,0.55,3314.4,3313.7,0.0367797]
[1732325509845,0.764,3314.8,3313.7,0.0367797]
[1732325509846,0.55,3314.2,3313.7,0.0367797]
[1732325510178,0.55,3314.0,3313.7,0.0367797]